[Event "*** SCC Grand Prix: Titled Tuesday Blitz"]
[Site "Chess.com"]
[Date "2020.08.25"]
[Round "6"]
[White "GustavoJuarezF"]
[Black "FMalexhdez"]
[Result "1/2-1/2"]
[WhiteElo "2065"]
[BlackElo "2172"]
[TimeControl "180+1"]
[EndTime "11:09:00 PDT"]
[Termination "Game drawn - insufficient material"]

1. e4 {[%clk 0:03:00.9]} 1... c5 {[%clk 0:01:30.1]} 2. Nf3 {[%clk 0:02:54.6]}
2... d6 {[%clk 0:01:29.3]} 3. d4 {[%clk 0:02:54.1]} 3... cxd4 {[%clk 0:01:29.9]}
4. Qxd4 {[%clk 0:02:53.9]} 4... Nf6 {[%clk 0:01:29.5]} 5. Nc3 {[%clk 0:02:50.9]}
5... Nc6 {[%clk 0:01:29.6]} 6. Bb5 {[%clk 0:02:49.6]} 6... e6 {[%clk 0:01:29.9]}
7. O-O {[%clk 0:02:47.5]} 7... Bd7 {[%clk 0:01:29.7]} 8. Bxc6 {[%clk 0:02:46.7]}
8... Bxc6 {[%clk 0:01:27.5]} 9. Bg5 {[%clk 0:02:43.2]} 9... Be7 {[%clk
0:01:26.4]} 10. Rad1 {[%clk 0:02:42.8]} 10... Qc7 {[%clk 0:01:20.2]} 11. Bxf6
{[%clk 0:02:38.9]} 11... Bxf6 {[%clk 0:01:13.9]} 12. Qxd6 {[%clk 0:02:35.3]}
12... Qxd6 {[%clk 0:01:13.2]} 13. Rxd6 {[%clk 0:02:33.7]} 13... Bxc3 {[%clk
0:01:13.2]} 14. bxc3 {[%clk 0:02:31.6]} 14... Bxe4 {[%clk 0:01:13.1]} 15. Ne1
{[%clk 0:02:17.3]} 15... Ke7 {[%clk 0:01:11.4]} 16. Rd4 {[%clk 0:02:15.2]} 16...
Bg6 {[%clk 0:00:59.3]} 17. Nd3 {[%clk 0:02:00.2]} 17... Rac8 {[%clk 0:00:58.9]}
18. c4 {[%clk 0:01:55.3]} 18... Rhd8 {[%clk 0:00:55.8]} 19. Rxd8 {[%clk
0:01:36.3]} 19... Kxd8 {[%clk 0:00:55.8]} 20. Rd1 {[%clk 0:01:29.2]} 20... Ke7
{[%clk 0:00:53.6]} 21. Rb1 {[%clk 0:01:11.5]} 21... b6 {[%clk 0:00:51.5]} 22.
Rb4 {[%clk 0:01:10.6]} 22... Bxd3 {[%clk 0:00:46.6]} 23. cxd3 {[%clk 0:01:09.7]}
23... Kd6 {[%clk 0:00:47.1]} 24. d4 {[%clk 0:01:01.8]} 24... e5 {[%clk
0:00:44.8]} 25. dxe5+ {[%clk 0:00:56]} 25... Kxe5 {[%clk 0:00:44.2]} 26. f3
{[%clk 0:00:49.1]} 26... Kd4 {[%clk 0:00:43.7]} 27. c5+ {[%clk 0:00:45.6]} 27...
Kxc5 {[%clk 0:00:42.8]} 28. Rg4 {[%clk 0:00:39.3]} 28... g6 {[%clk 0:00:42.3]}
29. Rh4 {[%clk 0:00:38.3]} 29... h5 {[%clk 0:00:40.9]} 30. Rf4 {[%clk
0:00:37.9]} 30... Rc7 {[%clk 0:00:38.8]} 31. Kf1 {[%clk 0:00:35.8]} 31... Re7
{[%clk 0:00:37.5]} 32. Ra4 {[%clk 0:00:34]} 32... a5 {[%clk 0:00:36.8]} 33. Ra3
{[%clk 0:00:33]} 33... Kb5 {[%clk 0:00:31.2]} 34. g4 {[%clk 0:00:30.7]} 34...
hxg4 {[%clk 0:00:29.2]} 35. fxg4 {[%clk 0:00:29.8]} 35... a4 {[%clk 0:00:29.7]}
36. h4 {[%clk 0:00:28.5]} 36... Kb4 {[%clk 0:00:26]} 37. Rg3 {[%clk 0:00:25.5]}
37... b5 {[%clk 0:00:20.1]} 38. h5 {[%clk 0:00:24.9]} 38... gxh5 {[%clk
0:00:17.8]} 39. gxh5 {[%clk 0:00:24.3]} 39... f5 {[%clk 0:00:17.2]} 40. h6
{[%clk 0:00:20]} 40... Rh7 {[%clk 0:00:16.6]} 41. Rh3 {[%clk 0:00:20.1]} 41...
Kc4 {[%clk 0:00:13.1]} 42. Ke2 {[%clk 0:00:19.8]} 42... b4 {[%clk 0:00:13]} 43.
Kd2 {[%clk 0:00:19.8]} 43... b3 {[%clk 0:00:12.8]} 44. axb3+ {[%clk 0:00:19.1]}
44... axb3 {[%clk 0:00:12.5]} 45. Kc1 {[%clk 0:00:19.6]} 45... f4 {[%clk
0:00:11.7]} 46. Kb2 {[%clk 0:00:19.3]} 46... Kd4 {[%clk 0:00:10.5]} 47. Kxb3
{[%clk 0:00:16.9]} 47... Ke4 {[%clk 0:00:11.1]} 48. Kc2 {[%clk 0:00:16.8]} 48...
f3 {[%clk 0:00:11.7]} 49. Kd2 {[%clk 0:00:16.9]} 49... Rd7+ {[%clk 0:00:10.1]}
50. Ke1 {[%clk 0:00:16.1]} 50... Rh7 {[%clk 0:00:08.9]} 51. Kf2 {[%clk
0:00:15.3]} 51... Kf4 {[%clk 0:00:09.1]} 52. Rxf3+ {[%clk 0:00:12.8]} 52... Kg5
{[%clk 0:00:09.3]} 53. Rg3+ {[%clk 0:00:11]} 53... Kxh6 {[%clk 0:00:08.6]} 54.
Rh3+ {[%clk 0:00:11]} 54... Kg6 {[%clk 0:00:09]} 55. Rxh7 {[%clk 0:00:08.3]}
55... Kxh7 {[%clk 0:00:09.5]} 1/2-1/2

[Event "*** SCC Grand Prix: Titled Tuesday Blitz"]
[Site "Chess.com"]
[Date "2020.08.25"]
[Round "6"]
[White "ShahMatKanal"]
[Black "kngopal"]
[Result "0-1"]
[WhiteElo "2457"]
[BlackElo "2280"]
[TimeControl "180+1"]
[EndTime "11:09:01 PDT"]
[Termination "kngopal won on time"]

1. e4 {[%clk 0:03:00.9]} 1... e6 {[%clk 0:02:58.3]} 2. Nf3 {[%clk 0:02:58.9]}
2... d5 {[%clk 0:02:57.8]} 3. e5 {[%clk 0:02:59.4]} 3... c5 {[%clk 0:02:57]} 4.
b4 {[%clk 0:02:59.9]} 4... b6 {[%clk 0:02:51.4]} 5. bxc5 {[%clk 0:02:57.5]} 5...
bxc5 {[%clk 0:02:51]} 6. c3 {[%clk 0:02:57.6]} 6... Nc6 {[%clk 0:02:49.1]} 7.
Bb5 {[%clk 0:02:52.8]} 7... Bd7 {[%clk 0:02:47.8]} 8. a4 {[%clk 0:02:30.6]} 8...
a6 {[%clk 0:02:36.4]} 9. Be2 {[%clk 0:02:22.3]} 9... Nh6 {[%clk 0:02:29.5]} 10.
O-O {[%clk 0:02:19.5]} 10... Nf5 {[%clk 0:02:27.4]} 11. Ba3 {[%clk 0:02:10.5]}
11... Be7 {[%clk 0:02:22.3]} 12. d4 {[%clk 0:02:07.4]} 12... cxd4 {[%clk
0:02:12.6]} 13. cxd4 {[%clk 0:02:07.8]} 13... O-O {[%clk 0:02:09.3]} 14. Ra2
{[%clk 0:01:47.8]} 14... a5 {[%clk 0:02:01.2]} 15. Bb5 {[%clk 0:01:42.7]} 15...
Nb4 {[%clk 0:01:57.1]} 16. Bxb4 {[%clk 0:01:16.5]} 16... axb4 {[%clk 0:01:52.7]}
17. Bxd7 {[%clk 0:01:08.9]} 17... Qxd7 {[%clk 0:01:51]} 18. Nbd2 {[%clk
0:01:06]} 18... Rfc8 {[%clk 0:01:43]} 19. Qa1 {[%clk 0:01:03.4]} 19... Rc3
{[%clk 0:01:35.3]} 20. Rb1 {[%clk 0:01:03.1]} 20... Ra3 {[%clk 0:01:31.9]} 21.
Rxa3 {[%clk 0:00:49.1]} 21... bxa3 {[%clk 0:01:31.3]} 22. a5 {[%clk 0:00:50]}
22... Rxa5 {[%clk 0:01:26.8]} 23. Rb8+ {[%clk 0:00:48.9]} 23... Bf8 {[%clk
0:01:26.1]} 24. Nb3 {[%clk 0:00:42.6]} 24... Rb5 {[%clk 0:01:23.7]} 25. Rxf8+
{[%clk 0:00:25]} 25... Kxf8 {[%clk 0:01:15.4]} 26. Qxa3+ {[%clk 0:00:25.9]}
26... Qe7 {[%clk 0:01:06.5]} 27. Qa8+ {[%clk 0:00:25]} 27... Qe8 {[%clk
0:01:05.3]} 28. Qa3+ {[%clk 0:00:24.7]} 28... Kg8 {[%clk 0:01:04.7]} 29. g4
{[%clk 0:00:19.5]} 29... Ne7 {[%clk 0:00:55.9]} 30. Nc5 {[%clk 0:00:19]} 30...
Nc6 {[%clk 0:00:44.9]} 31. Qa6 {[%clk 0:00:13.9]} 31... Nxd4 {[%clk 0:00:41.4]}
32. Nxd4 {[%clk 0:00:06.1]} 32... Rxc5 {[%clk 0:00:41.1]} 33. h3 {[%clk
0:00:03.5]} 33... h6 {[%clk 0:00:40.1]} 34. Kg2 {[%clk 0:00:03.4]} 34... Qc8
{[%clk 0:00:38.1]} 35. Qd6 {[%clk 0:00:02.7]} 35... Rc4 {[%clk 0:00:34]} 36. Nf3
{[%clk 0:00:01.8]} 36... Rf4 {[%clk 0:00:30.9]} 37. Qa3 {[%clk 0:00:01.8]} 37...
Qc4 {[%clk 0:00:29.7]} 38. Qa8+ {[%clk 0:00:01.9]} 38... Kh7 {[%clk 0:00:29.1]}
39. Qa3 {[%clk 0:00:02.8]} 39... Qe4 {[%clk 0:00:28.1]} 40. Qc3 {[%clk 0:00:03]}
40... g5 {[%clk 0:00:25.1]} 41. Kg3 {[%clk 0:00:02.7]} 41... Kg6 {[%clk
0:00:23.9]} 42. h4 {[%clk 0:00:02.3]} 42... Rxf3+ {[%clk 0:00:20.9]} 43. Qxf3
{[%clk 0:00:01.5]} 43... gxh4+ {[%clk 0:00:20.9]} 44. Kg2 {[%clk 0:00:01.2]}
44... Qxf3+ {[%clk 0:00:20.9]} 45. Kxf3 {[%clk 0:00:01.5]} 45... d4 {[%clk
0:00:21]} 46. Ke4 {[%clk 0:00:01.7]} 46... h3 {[%clk 0:00:21.3]} 47. Kxd4 {[%clk
0:00:01.5]} 47... h2 {[%clk 0:00:21.6]} 0-1

[Event "*** SCC Grand Prix: Titled Tuesday Blitz"]
[Site "Chess.com"]
[Date "2020.08.25"]
[Round "6"]
[White "Efremov_Vlad"]
[Black "Olga_Zhuravleva"]
[Result "1/2-1/2"]
[WhiteElo "2203"]
[BlackElo "2320"]
[TimeControl "180+1"]
[EndTime "11:09:01 PDT"]
[Termination "Game drawn - insufficient material"]

1. d4 {[%clk 0:03:00.9]} 1... Nf6 {[%clk 0:02:57.4]} 2. c4 {[%clk 0:03:00.9]}
2... e6 {[%clk 0:02:58]} 3. Nf3 {[%clk 0:02:59.7]} 3... b6 {[%clk 0:02:57.2]} 4.
g3 {[%clk 0:02:59.6]} 4... Bb7 {[%clk 0:02:57.2]} 5. Bg2 {[%clk 0:03:00]} 5...
Bb4+ {[%clk 0:02:57.9]} 6. Bd2 {[%clk 0:03:00]} 6... c5 {[%clk 0:02:58.3]} 7.
Bxb4 {[%clk 0:02:56.1]} 7... cxb4 {[%clk 0:02:57.3]} 8. O-O {[%clk 0:02:55.9]}
8... O-O {[%clk 0:02:57.8]} 9. Nbd2 {[%clk 0:02:48.3]} 9... d5 {[%clk 0:02:55]}
10. Ne5 {[%clk 0:02:46.7]} 10... Nc6 {[%clk 0:02:52.9]} 11. Nxc6 {[%clk
0:02:24]} 11... Bxc6 {[%clk 0:02:51.4]} 12. Rc1 {[%clk 0:02:23.5]} 12... Rc8
{[%clk 0:02:46.6]} 13. Re1 {[%clk 0:01:56.4]} 13... dxc4 {[%clk 0:02:36.8]} 14.
Bxc6 {[%clk 0:01:50.5]} 14... Rxc6 {[%clk 0:02:32.4]} 15. Nxc4 {[%clk
0:01:50.7]} 15... Qd5 {[%clk 0:02:27.4]} 16. b3 {[%clk 0:01:32.6]} 16... Rd8
{[%clk 0:02:21.7]} 17. Ne5 {[%clk 0:01:18.3]} 17... Rxc1 {[%clk 0:02:16.1]} 18.
Qxc1 {[%clk 0:01:19.2]} 18... Qxd4 {[%clk 0:02:13.1]} 19. Nc6 {[%clk 0:01:19.3]}
19... Qd7 {[%clk 0:02:06.2]} 20. Nxd8 {[%clk 0:01:17.6]} 20... Qxd8 {[%clk
0:02:07.1]} 21. Rd1 {[%clk 0:01:16.4]} 21... Qf8 {[%clk 0:02:03.6]} 22. Qc7
{[%clk 0:01:04.3]} 22... Nd5 {[%clk 0:02:02.2]} 23. Qxa7 {[%clk 0:01:04.2]}
23... g6 {[%clk 0:01:58.7]} 24. e4 {[%clk 0:00:53.5]} 24... Nc3 {[%clk
0:01:58.5]} 25. Rd7 {[%clk 0:00:52.8]} 25... Nxe4 {[%clk 0:01:27.3]} 26. Qxb6
{[%clk 0:00:47.3]} 26... Kg7 {[%clk 0:01:15.5]} 27. Qd4+ {[%clk 0:00:39.8]}
27... Nf6 {[%clk 0:01:15]} 28. Rd8 {[%clk 0:00:29.8]} 28... Qe7 {[%clk
0:01:11.3]} 29. Qd6 {[%clk 0:00:26.9]} 29... Qxd6 {[%clk 0:01:04.5]} 30. Rxd6
{[%clk 0:00:27.8]} 30... Nd5 {[%clk 0:01:04.2]} 31. Ra6 {[%clk 0:00:23.5]} 31...
Kf6 {[%clk 0:01:03.5]} 32. a3 {[%clk 0:00:23.7]} 32... bxa3 {[%clk 0:01:01.3]}
33. Rxa3 {[%clk 0:00:24.6]} 33... Ke5 {[%clk 0:01:01.4]} 34. f4+ {[%clk
0:00:24.7]} 34... Kd4 {[%clk 0:01:00.6]} 35. Kf2 {[%clk 0:00:24.8]} 35... Kc3
{[%clk 0:01:00.4]} 36. Ra7 {[%clk 0:00:24.8]} 36... f6 {[%clk 0:00:58.5]} 37.
Rxh7 {[%clk 0:00:24.6]} 37... g5 {[%clk 0:00:51]} 38. fxg5 {[%clk 0:00:23.8]}
38... fxg5 {[%clk 0:00:51.9]} 39. Rg7 {[%clk 0:00:23.1]} 39... Nf6 {[%clk
0:00:49.6]} 40. Rg6 {[%clk 0:00:20.5]} 40... Ne4+ {[%clk 0:00:48.5]} 41. Kf3
{[%clk 0:00:20.4]} 41... Nd2+ {[%clk 0:00:48.2]} 42. Kg4 {[%clk 0:00:20.4]}
42... Nxb3 {[%clk 0:00:44.5]} 43. Rxe6 {[%clk 0:00:19.7]} 43... Nd4 {[%clk
0:00:43.9]} 44. Rg6 {[%clk 0:00:19.1]} 44... Ne2 {[%clk 0:00:39.2]} 45. Rxg5
{[%clk 0:00:13.6]} 45... Kd4 {[%clk 0:00:39.4]} 46. h4 {[%clk 0:00:11.5]} 46...
Nc3 {[%clk 0:00:39.5]} 47. h5 {[%clk 0:00:11.5]} 47... Ne4 {[%clk 0:00:40.1]}
48. h6 {[%clk 0:00:04.1]} 48... Ke3 {[%clk 0:00:29.7]} 49. Rg8 {[%clk
0:00:03.4]} 49... Nf6+ {[%clk 0:00:28.4]} 50. Kg5 {[%clk 0:00:03.8]} 50... Nxg8
{[%clk 0:00:28.9]} 51. g4 {[%clk 0:00:04.2]} 51... Kf3 {[%clk 0:00:26.2]} 52. h7
{[%clk 0:00:04.4]} 52... Nh6 {[%clk 0:00:25]} 53. h8=Q {[%clk 0:00:05.3]} 53...
Nf7+ {[%clk 0:00:24.7]} 54. Kg6 {[%clk 0:00:04.3]} 54... Nxh8+ {[%clk
0:00:25.3]} 55. Kh7 {[%clk 0:00:04.7]} 55... Kxg4 {[%clk 0:00:24.9]} 1/2-1/2

[Event "*** SCC Grand Prix: Titled Tuesday Blitz"]
[Site "Chess.com"]
[Date "2020.08.25"]
[Round "6"]
[White "esrosenberg"]
[Black "Kaua18"]
[Result "1-0"]
[WhiteElo "2196"]
[BlackElo "2390"]
[TimeControl "180+1"]
[EndTime "11:09:02 PDT"]
[Termination "esrosenberg won on time"]

1. Nf3 {[%clk 0:03:00.9]} 1... c5 {[%clk 0:02:52.4]} 2. c4 {[%clk 0:02:59.7]}
2... Nc6 {[%clk 0:02:40.8]} 3. g3 {[%clk 0:02:57.7]} 3... g6 {[%clk 0:02:39.8]}
4. Bg2 {[%clk 0:02:57.7]} 4... Bg7 {[%clk 0:02:39.7]} 5. Nc3 {[%clk 0:02:58.3]}
5... d6 {[%clk 0:02:39.2]} 6. O-O {[%clk 0:02:58.3]} 6... e5 {[%clk 0:02:38.4]}
7. a3 {[%clk 0:02:54.9]} 7... Nge7 {[%clk 0:02:34.2]} 8. b4 {[%clk 0:02:44.9]}
8... cxb4 {[%clk 0:02:33.6]} 9. axb4 {[%clk 0:02:45.2]} 9... Nxb4 {[%clk
0:02:34.3]} 10. Ba3 {[%clk 0:02:43.8]} 10... Nbc6 {[%clk 0:02:34.4]} 11. Qa4
{[%clk 0:02:40.4]} 11... O-O {[%clk 0:02:34.2]} 12. Rab1 {[%clk 0:02:39.3]}
12... Rb8 {[%clk 0:02:15.2]} 13. Ng5 {[%clk 0:02:29]} 13... a6 {[%clk
0:02:04.2]} 14. Nge4 {[%clk 0:02:25.9]} 14... Nf5 {[%clk 0:02:04.3]} 15. e3
{[%clk 0:02:16.4]} 15... Be6 {[%clk 0:01:42.2]} 16. Nd5 {[%clk 0:02:12.8]} 16...
b5 {[%clk 0:01:37.4]} 17. Qxa6 {[%clk 0:02:08]} 17... b4 {[%clk 0:01:12.7]} 18.
Nxb4 {[%clk 0:01:39.2]} 18... Rb6 {[%clk 0:00:56.5]} 19. Nxc6 {[%clk 0:01:25.4]}
19... Rxa6 {[%clk 0:00:51.3]} 20. Nxd8 {[%clk 0:01:25.5]} 20... Rxd8 {[%clk
0:00:46.2]} 21. Bb4 {[%clk 0:01:11.2]} 21... Bxc4 {[%clk 0:00:43.1]} 22. Rfc1
{[%clk 0:01:11.8]} 22... d5 {[%clk 0:00:23.9]} 23. Nc5 {[%clk 0:00:46.6]} 23...
Ra2 {[%clk 0:00:23.4]} 24. d3 {[%clk 0:00:45.9]} 24... Bb5 {[%clk 0:00:23.2]}
25. Nb7 {[%clk 0:00:39.4]} 25... Rb8 {[%clk 0:00:17.3]} 26. Bxd5 {[%clk
0:00:36.6]} 26... Bxd3 {[%clk 0:00:17.4]} 27. Rb3 {[%clk 0:00:22.5]} 27... e4
{[%clk 0:00:14.7]} 28. Be1 {[%clk 0:00:14.7]} 28... Bf8 {[%clk 0:00:10.8]} 29.
Rxd3 {[%clk 0:00:14.4]} 29... exd3 {[%clk 0:00:10.7]} 30. Bxa2 {[%clk
0:00:14.7]} 30... Rxb7 {[%clk 0:00:10.5]} 31. Rc8 {[%clk 0:00:15.2]} 31... Kg7
{[%clk 0:00:10.6]} 32. Bc3+ {[%clk 0:00:14.2]} 32... f6 {[%clk 0:00:11.2]} 33.
Bxf6+ {[%clk 0:00:13.2]} 33... Kxf6 {[%clk 0:00:12.1]} 34. Rxf8+ {[%clk
0:00:13.6]} 34... Kg7 {[%clk 0:00:11.3]} 35. Rd8 {[%clk 0:00:13.8]} 35... Rb2
{[%clk 0:00:09.5]} 36. Be6 {[%clk 0:00:11.3]} 36... d2 {[%clk 0:00:08]} 37. Bxf5
{[%clk 0:00:11.1]} 37... gxf5 {[%clk 0:00:08.9]} 38. Kg2 {[%clk 0:00:11.1]}
38... Kf6 {[%clk 0:00:09.2]} 39. Kf3 {[%clk 0:00:11.3]} 39... Ke7 {[%clk
0:00:04.8]} 40. Rd4 {[%clk 0:00:11.5]} 40... Ke6 {[%clk 0:00:02.5]} 41. h4
{[%clk 0:00:10.1]} 41... Ke5 {[%clk 0:00:02.7]} 42. h5 {[%clk 0:00:10.4]} 42...
h6 {[%clk 0:00:03.1]} 43. g4 {[%clk 0:00:08.9]} 43... fxg4+ {[%clk 0:00:02.8]}
44. Kxg4 {[%clk 0:00:09.4]} 44... Rb4 {[%clk 0:00:01.6]} 45. f4+ {[%clk
0:00:08]} 45... Ke6 {[%clk 0:00:01.3]} 46. Rxd2 {[%clk 0:00:08.2]} 46... Rb2
{[%clk 0:00:01.7]} 47. Rxb2 {[%clk 0:00:08.2]} 47... Kf6 {[%clk 0:00:02.6]} 48.
Rb6+ {[%clk 0:00:08.4]} 48... Kf7 {[%clk 0:00:03.5]} 49. Kf5 {[%clk 0:00:08.4]}
1-0

[Event "*** SCC Grand Prix: Titled Tuesday Blitz"]
[Site "Chess.com"]
[Date "2020.08.25"]
[Round "6"]
[White "CookiesAndIceCream"]
[Black "Chamal_Gedgafov"]
[Result "1-0"]
[WhiteElo "2355"]
[BlackElo "2105"]
[TimeControl "180+1"]
[EndTime "11:09:02 PDT"]
[Termination "CookiesAndIceCream won on time"]

1. e4 {[%clk 0:03:00.9]} 1... e6 {[%clk 0:02:58.9]} 2. d4 {[%clk 0:03:00.3]}
2... d5 {[%clk 0:02:59.3]} 3. Nd2 {[%clk 0:03:00.1]} 3... a6 {[%clk 0:02:58.8]}
4. Ngf3 {[%clk 0:02:59.5]} 4... c5 {[%clk 0:02:58.2]} 5. exd5 {[%clk 0:02:55.5]}
5... exd5 {[%clk 0:02:57.1]} 6. c4 {[%clk 0:02:55.8]} 6... Nf6 {[%clk 0:02:51]}
7. Be2 {[%clk 0:02:50.6]} 7... Nc6 {[%clk 0:02:49]} 8. O-O {[%clk 0:02:44.3]}
8... cxd4 {[%clk 0:02:48]} 9. cxd5 {[%clk 0:02:38.2]} 9... Nxd5 {[%clk
0:02:40.5]} 10. Nb3 {[%clk 0:02:30.9]} 10... Be7 {[%clk 0:02:39.4]} 11. Nbxd4
{[%clk 0:02:26.7]} 11... Nxd4 {[%clk 0:02:38.2]} 12. Qxd4 {[%clk 0:02:26.8]}
12... O-O {[%clk 0:02:35.3]} 13. Rd1 {[%clk 0:02:23.8]} 13... Be6 {[%clk
0:02:34]} 14. Bd2 {[%clk 0:01:47.7]} 14... Qb6 {[%clk 0:02:20.2]} 15. Qxb6
{[%clk 0:01:40.3]} 15... Nxb6 {[%clk 0:02:18.7]} 16. Bc3 {[%clk 0:01:37.5]}
16... Rfd8 {[%clk 0:02:09.2]} 17. Bd4 {[%clk 0:01:30.9]} 17... Nc4 {[%clk
0:02:02.6]} 18. Rac1 {[%clk 0:01:29.8]} 18... b5 {[%clk 0:01:56.6]} 19. b3
{[%clk 0:01:18.6]} 19... Nd6 {[%clk 0:01:41.2]} 20. Ne5 {[%clk 0:01:05.3]} 20...
Bf8 {[%clk 0:01:11.8]} 21. Bf3 {[%clk 0:00:53.6]} 21... Rac8 {[%clk 0:01:09]}
22. Nc6 {[%clk 0:00:53.5]} 22... Re8 {[%clk 0:01:07.7]} 23. Nb4 {[%clk
0:00:37.4]} 23... a5 {[%clk 0:01:01.1]} 24. Nc6 {[%clk 0:00:36.6]} 24... a4
{[%clk 0:01:00.9]} 25. bxa4 {[%clk 0:00:33.5]} 25... bxa4 {[%clk 0:01:00.2]} 26.
a3 {[%clk 0:00:31.4]} 26... Bb3 {[%clk 0:00:58.9]} 27. Re1 {[%clk 0:00:29.2]}
27... Nf5 {[%clk 0:00:54.6]} 28. Bb2 {[%clk 0:00:20.2]} 28... Nd6 {[%clk
0:00:50.4]} 29. g3 {[%clk 0:00:18.9]} 29... Nc4 {[%clk 0:00:49.8]} 30. Rxe8
{[%clk 0:00:14.9]} 30... Rxe8 {[%clk 0:00:46.2]} 31. Bc3 {[%clk 0:00:09.6]}
31... Bxa3 {[%clk 0:00:43.6]} 32. Ra1 {[%clk 0:00:10]} 32... Bc5 {[%clk
0:00:37.9]} 33. Nd4 {[%clk 0:00:09]} 33... h6 {[%clk 0:00:27.5]} 34. Bd5 {[%clk
0:00:08.8]} 34... Rd8 {[%clk 0:00:17]} 35. Nxb3 {[%clk 0:00:07.3]} 35... Rxd5
{[%clk 0:00:13.2]} 36. Rxa4 {[%clk 0:00:07.4]} 36... Ne5 {[%clk 0:00:10.8]} 37.
Ra5 {[%clk 0:00:04]} 37... Nd7 {[%clk 0:00:07.6]} 38. Nxc5 {[%clk 0:00:03.2]}
38... Rxc5 {[%clk 0:00:06.1]} 39. Ra8+ {[%clk 0:00:02.5]} 39... Kh7 {[%clk
0:00:04.2]} 40. Bd4 {[%clk 0:00:03.4]} 40... Rd5 {[%clk 0:00:04.1]} 41. Be3
{[%clk 0:00:02.9]} 41... f6 {[%clk 0:00:04]} 42. Kg2 {[%clk 0:00:03.3]} 42...
Ne5 {[%clk 0:00:04]} 43. Ra7 {[%clk 0:00:03.8]} 43... Kg6 {[%clk 0:00:01.8]} 44.
Bf4 {[%clk 0:00:04.1]} 44... Rb5 {[%clk 0:00:01.8]} 45. h3 {[%clk 0:00:04.5]}
45... Rb3 {[%clk 0:00:01.5]} 46. Be3 {[%clk 0:00:04.7]} 46... Rb2 {[%clk
0:00:01.4]} 47. g4 {[%clk 0:00:05]} 1-0

[Event "*** SCC Grand Prix: Titled Tuesday Blitz"]
[Site "Chess.com"]
[Date "2020.08.25"]
[Round "6"]
[White "ChessicallyInclined"]
[Black "rududuyk"]
[Result "1-0"]
[WhiteElo "2525"]
[BlackElo "2169"]
[TimeControl "180+1"]
[EndTime "11:09:04 PDT"]
[Termination "ChessicallyInclined won on time"]

1. d4 {[%clk 0:03:00.9]} 1... e6 {[%clk 0:02:59.8]} 2. c4 {[%clk 0:03:00.8]}
2... f5 {[%clk 0:03:00.2]} 3. g3 {[%clk 0:02:57.4]} 3... Nf6 {[%clk 0:03:00.1]}
4. Bg2 {[%clk 0:02:54]} 4... Be7 {[%clk 0:02:57.7]} 5. Nh3 {[%clk 0:02:51.5]}
5... O-O {[%clk 0:02:52.4]} 6. O-O {[%clk 0:02:43.2]} 6... d6 {[%clk 0:02:46.7]}
7. Nf4 {[%clk 0:02:40.8]} 7... e5 {[%clk 0:02:40.4]} 8. dxe5 {[%clk 0:02:39.9]}
8... dxe5 {[%clk 0:02:38.6]} 9. Nd5 {[%clk 0:02:40.6]} 9... Bc5 {[%clk
0:02:27.7]} 10. Bg5 {[%clk 0:02:38.9]} 10... Nbd7 {[%clk 0:02:21.6]} 11. b4
{[%clk 0:02:35]} 11... Bd4 {[%clk 0:02:19.2]} 12. Ndc3 {[%clk 0:02:24.9]} 12...
a5 {[%clk 0:02:03.4]} 13. e3 {[%clk 0:02:23.1]} 13... Ba7 {[%clk 0:01:44.4]} 14.
a3 {[%clk 0:02:15.1]} 14... Qe8 {[%clk 0:01:40.8]} 15. Nd2 {[%clk 0:02:03.2]}
15... Qg6 {[%clk 0:01:21.6]} 16. Bxf6 {[%clk 0:02:01.8]} 16... Nxf6 {[%clk
0:01:21.1]} 17. Nb5 {[%clk 0:01:57.4]} 17... Bb8 {[%clk 0:01:12]} 18. c5 {[%clk
0:01:52.4]} 18... f4 {[%clk 0:01:02.9]} 19. exf4 {[%clk 0:01:48.6]} 19... exf4
{[%clk 0:01:01.7]} 20. Nc4 {[%clk 0:01:48.3]} 20... axb4 {[%clk 0:00:53.1]} 21.
axb4 {[%clk 0:01:48.1]} 21... Rxa1 {[%clk 0:00:52.1]} 22. Qxa1 {[%clk 0:01:49]}
22... Ng4 {[%clk 0:00:42.7]} 23. Nd4 {[%clk 0:01:02.5]} 23... Nxh2 {[%clk
0:00:18.7]} 24. Kxh2 {[%clk 0:00:34]} 24... Qh5+ {[%clk 0:00:14.6]} 25. Kg1
{[%clk 0:00:32]} 25... f3 {[%clk 0:00:11.5]} 26. Nxf3 {[%clk 0:00:28.6]} 26...
Rxf3 {[%clk 0:00:11.1]} 27. Qa8 {[%clk 0:00:24.1]} 27... Rf8 {[%clk 0:00:07.9]}
28. Qxb8 {[%clk 0:00:22.9]} 28... Be6 {[%clk 0:00:05.9]} 29. Qxc7 {[%clk
0:00:18.7]} 29... Bxc4 {[%clk 0:00:06.1]} 30. Qxb7 {[%clk 0:00:15.7]} 30... Bxf1
{[%clk 0:00:04.9]} 31. Qd5+ {[%clk 0:00:15.8]} 31... Qxd5 {[%clk 0:00:03.8]} 32.
Bxd5+ {[%clk 0:00:16.7]} 32... Kh8 {[%clk 0:00:03.9]} 33. Kxf1 {[%clk
0:00:17.4]} 33... Rd8 {[%clk 0:00:03.5]} 34. Bf3 {[%clk 0:00:09.5]} 34... Rb8
{[%clk 0:00:02.8]} 35. c6 {[%clk 0:00:06.9]} 35... Rxb4 {[%clk 0:00:03.1]} 36.
Bg4 {[%clk 0:00:06.3]} 36... Rc4 {[%clk 0:00:02.8]} 37. Bd7 {[%clk 0:00:05.8]}
37... Kg8 {[%clk 0:00:03]} 38. Ke2 {[%clk 0:00:06.4]} 38... Kf7 {[%clk 0:00:03]}
39. Kd3 {[%clk 0:00:07]} 39... Rc1 {[%clk 0:00:02.5]} 40. f4 {[%clk 0:00:07.5]}
40... Ke7 {[%clk 0:00:02.7]} 41. Ke4 {[%clk 0:00:07.6]} 41... Kd6 {[%clk
0:00:03.2]} 42. Kf5 {[%clk 0:00:08]} 42... Rc5+ {[%clk 0:00:02]} 43. Kg4 {[%clk
0:00:08.4]} 43... Rc4 {[%clk 0:00:01.6]} 44. Kg5 {[%clk 0:00:08.2]} 44... Rc5+
{[%clk 0:00:02.5]} 45. f5 {[%clk 0:00:08.2]} 45... Rc4 {[%clk 0:00:02.6]} 46. g4
{[%clk 0:00:08.7]} 46... Rc5 {[%clk 0:00:02.7]} 47. Kh4 {[%clk 0:00:08.7]} 47...
Rc4 {[%clk 0:00:02.9]} 48. Kh5 {[%clk 0:00:08.6]} 48... Rc5 {[%clk 0:00:02.6]}
49. g5 {[%clk 0:00:08.6]} 49... Rc4 {[%clk 0:00:01.9]} 50. f6 {[%clk 0:00:08.6]}
50... gxf6 {[%clk 0:00:02]} 51. gxf6 {[%clk 0:00:09.5]} 51... Rc5+ {[%clk
0:00:02.2]} 52. Kh6 {[%clk 0:00:09.7]} 52... Rc4 {[%clk 0:00:01.1]} 53. Kxh7
{[%clk 0:00:09.2]} 1-0